Workbook

Sheet WQ Report
A1: Parameter | B1: Units | C1: Year Tested | D1: MCL | E1: DLR | F1: Chino I Desalter | G1: Comments
A2: Parameter | B2: Units | C2: Year Tested | D2: MCL | E2: DLR | F2: Chino I Desalter | G2: Comments
A3: PRIMARY STANDARDS - Mandatory Health-Related Standards
A4: Inorganic Chemicals (IOCs) | G4: Storet #
A5: Aluminum | B5: ppb | C5: 2020 | D5: 1000 | E5: 50 | F5: < 50 | G5: 01105
A6: Antimony | B6: ppb | C6: 2020 | D6: 6 | E6: 6 | F6: < 6 | G6: 01097
A7: Arsenic | B7: ppb | C7: 2020 | D7: 10 | E7: 2 | F7: < 2 | G7: 01002
A8: Asbestos | B8: MFL | C8: 2020 | D8: 7 | E8: 0.2 | F8: 0 | G8: 81855
A9: Barium | B9: ppb | C9: 2020 | D9: 1000 | E9: 100 | F9: < 100 | G9: 01007
A10: Beryllium | B10: ppb | C10: 2020 | D10: 4 | E10: 1 | F10: < 1 | G10: 01012
A11: Cadmium | B11: ppb | C11: 2020 | D11: 5 | E11: 1 | F11: < 1 | G11: 01027
A12: Total Chromium | B12: ppb | C12: 2020 | D12: 50 | E12: 10 | F12: < 10 | G12: 01034
A13: Copper | B13: ppb | C13: 2020 | D13: 1000 | E13: 50 | F13: < 50 | G13: 01042
A14: Cyanide | B14: ppb | C14: 2020 | D14: 150 | E14: 100 | F14: < 100 | G14: 01291
A15: Fluoride | B15: ppm | C15: 2020 | D15: 2 | E15: 0.1 | F15: < 0.1 | G15: 00951
A16: Hexavalent Chromium | B16: ppb | C16: 2020 | D16: 10 | E16: 1 | F16: < 1 | G16: 01032
A17: Lead | B17: ppb | C17: 2020 | D17: 15 | E17: 5 | F17: < 5 | G17: 01051
A18: Mercury | B18: ppb | C18: 2020 | D18: 2 | E18: 1 | F18: < 1 | G18: 71900
A19: Nickel | B19: ppb | C19: 2020 | D19: 100 | E19: 10 | F19: < 10 | G19: 01067
A20: Nitrate (as N) | B20: mg/L | C20: 2020 | D20: 10 | E20: 0.4 | F20: 4.4 | G20: 00618 (Highest result 06/02/20)
A21: Nitrite (as N) | B21: mg/L | C21: 2020 | D21: 1 | E21: 0.4 | F21: < 0.4 | G21: 00620
A22: Perchlorate | B22: ppb | C22: 2020 | D22: 6 | E22: 4 | F22: < 4 | G22: A-031
A23: Selenium | B23: ppb | C23: 2020 | D23: 50 | E23: 5 | F23: < 5 | G23: 01147
A24: Thallium | B24: ppb | C24: 2020 | D24: 2 | E24: 1 | F24: < 1 | G24: 01059
A25: Volatile Organic Chemicals (VOCs)
A26: Benzene | B26: ppb | C26: 2020 | D26: 1 | E26: 0.5 | F26: < 0.5 | G26: 34030
A27: Carbon Tetrachloride | B27: ppb | C27: 2020 | D27: 0.5 | E27: 0.5 | F27: < 0.5 | G27: 32102
A28: 1,2-Dichlorobenzene | B28: ppb | C28: 2020 | D28: 600 | E28: 0.5 | F28: < 0.5 | G28: 34536
A29: 1,4-Dichlorobenzene | B29: ppb | C29: 2020 | D29: 5 | E29: 0.5 | F29: < 0.5 | G29: 34571
A30: 1,1-Dichloroethane | B30: ppb | C30: 2020 | D30: 5 | E30: 0.5 | F30: < 0.5 | G30: 34496
A31: 1,2-Dichloroethane | B31: ppb | C31: 2020 | D31: 0.5 | E31: 0.5 | F31: < 0.5 | G31: 34531
A32: 1,1-Dichloroethylene | B32: ppb | C32: 2020 | D32: 6 | E32: 0.5 | F32: < 0.5 | G32: 34501
A33: cis-1,2-Dichloroethylene | B33: ppb | C33: 2020 | D33: 6 | E33: 0.5 | F33: < 0.5 | G33: 77093
A34: trans-1,2-Dichloroethylene | B34: ppb | C34: 2020 | D34: 10 | E34: 0.5 | F34: < 0.5 | G34: 34546
A35: Dichloromethane (Methyl Chloride) | B35: ppb | C35: 2020 | D35: 5 | E35: 0.5 | F35: < 0.5 | G35: 34423
A36: 1,3-Dichloropropene | B36: ppb | C36: 2020 | D36: 0.5 | E36: 0.5 | F36: < 0.5 | G36: 34561
A37: 1,2-Dichloropropane | B37: ppb | C37: 2020 | D37: 5 | E37: 0.5 | F37: < 0.5 | G37: 34541
A38: Ethylbenzene | B38: ppb | C38: 2020 | D38: 300 | E38: 0.5 | F38: < 0.5 | G38: 34371
A39: Methyl-tert-butyl ether (MTBE) | B39: ppb | C39: 2020 | D39: 13 | E39: 3 | F39: < 3 | G39: 46491
A40: Styrene | B40: ppb | C40: 2020 | D40: 100 | E40: 0.5 | F40: < 0.5 | G40: 77128
A41: 1,1,2,2-Tetrachloroethane | B41: ppb | C41: 2020 | D41: 1 | E41: 0.5 | F41: < 0.5 | G41: 34516
A42: Tetrachloroethylene | B42: ppb | C42: 2020 | D42: 5 | E42: 0.5 | F42: < 0.5 | G42: 34475
A43: Toluene | B43: ppb | C43: 2020 | D43: 150 | E43: 0.5 | F43: < 0.5 | G43: 34010
A44: 1,2,4 Trichlorobenzene | B44: ppb | C44: 2020 | D44: 5 | E44: 0.5 | F44: < 0.5 | G44: 34551
A45: 1,1,1-Trichloroethane | B45: ppb | C45: 2020 | D45: 200 | E45: 0.5 | F45: < 0.5 | G45: 34506
A46: 1,1,2-Trichloroethane | B46: ppb | C46: 2020 | D46: 5 | E46: 0.5 | F46: < 0.5 | G46: 34511
A47: Trichloroethylene (TCE) | B47: ppb | C47: 2020 | D47: 5 | E47: 0.5 | F47: < 0.5 | G47: 39180
A48: Trichlorofluoromethane (Freon-11) | B48: ppb | C48: 2020 | D48: 150 | E48: 5 | F48: < 5 | G48: 34488
A49: 1,1,2-Trichloro-1,2,2-Trifluoroethane (Trichlorotrifluoroethane) | B49: ppb | C49: 2020 | D49: 1200 | E49: 10 | F49: < 10 | G49: 81611
A50: Vinyl Chloride | B50: ppb | C50: 2020 | D50: 0.5 | E50: 0.5 | F50: < 0.5 | G50: 39175
A51: Xylenes (Total) | B51: ppb | C51: 2020 | D51: 1750 | E51: 0.5 | F51: < 0.5 | G51: 81551
A52: Synthetic Organic Chemicals (SOCs)
A53: Alachlor | B53: ppb | C53: 2020 | D53: 2 | E53: 1 | F53: < 1 | G53: 77825
A54: Atrazine | B54: ppb | C54: 2020 | D54: 1 | E54: 0.5 | F54: < 0.5 | G54: 39033
A55: Bentazon | B55: ppb | C55: 2020 | D55: 18 | E55: 2 | F55: < 2 | G55: 38710
A56: Benzo (a) pyrene | B56: ppb | C56: 2020 | D56: 0.2 | E56: 0.1 | F56: < 0.1 | G56: 34247
A58: Parameter | B58: Units | C58: Year Tested | D58: MCL | E58: DLR | F58: Chino I Desalter | G58: Comments
A59: PRIMARY STANDARDS - Mandatory Health-Related Standards
A60: Synthetic Organic Chemicals (SOCs) (Continued)
A61: Carbofuran | B61: ppb | C61: 2020 | D61: 18 | E61: 5 | F61: < 5 | G61: 81405
A62: 2,4-D | B62: ppb | C62: 2020 | D62: 70 | E62: 10 | F62: < 10 | G62: 39730
A63: Dalapon | B63: ppb | C63: 2020 | D63: 200 | E63: 10 | F63: < 10 | G63: 38432
A64: Di (2-ethylhexyl) adipate | B64: ppb | C64: 2020 | D64: 400 | E64: 5 | F64: < 5 | G64: A -26
A65: Di (2-ethylhexyl) phthalate | B65: ppb | C65: 2020 | D65: 4 | E65: 3 | F65: < 3 | G65: 39100
A66: Dibromochloropropane (DBCP) | B66: ppb | C66: 2020 | D66: 0.2 | E66: 0.01 | F66: < 0.01 | G66: 38761
A67: Dinoseb | B67: ppb | C67: 2020 | D67: 7 | E67: 2 | F67: < 2 | G67: 81287
A68: Diquat | B68: ppb | C68: 2020 | D68: 20 | E68: 0.4 | F68: 0 | G68: 78885
A69: Endothall | B69: ppb | C69: 2020 | D69: 100 | E69: 45 | F69: < 45 | G69: 38926
A70: Endrin | B70: ppb | C70: 2020 | D70: 2 | E70: 0.1 | F70: < 0.1 | G70: 39390
A71: Ethylene Dibromide (EDB) | B71: ppb | C71: 2020 | D71: 0.05 | E71: 0.02 | F71: < 0.02 | G71: 77651
A72: Glyphosate | B72: ppb | C72: 2020 | D72: 700 | E72: 25 | F72: < 25 | G72: 79743
A73: Heptachlor | B73: ppb | C73: 2020 | D73: 0.01 | E73: 0.01 | F73: < 0.01 | G73: 39410
A74: Heptachlor Epoxide | B74: ppb | C74: 2020 | D74: 0.01 | E74: 0.01 | F74: < 0.01 | G74: 39420
A75: Hexachlorobenzene | B75: ppb | C75: 2020 | D75: 1 | E75: 0.5 | F75: < 0.5 | G75: 39700
A76: Hexachlorocyclopentadiene | B76: ppb | C76: 2020 | D76: 50 | E76: 1 | F76: < 1 | G76: 34386
A77: Lindane | B77: ppb | C77: 2020 | D77: 0.2 | E77: 0.2 | F77: < 0.2 | G77: 39340
A78: Methoxychlor | B78: ppb | C78: 2020 | D78: 30 | E78: 10 | F78: < 10 | G78: 39480
A79: Molinate | B79: ppb | C79: 2020 | D79: 20 | E79: 2 | F79: < 2 | G79: 82199
A80: Oxamyl (Vydate) | B80: ppb | C80: 2020 | D80: 50 | E80: 20 | F80: < 20 | G80: 38865
A81: Pentachlorophenol | B81: ppb | C81: 2020 | D81: 1 | E81: 0.2 | F81: < 0.2 | G81: 39032
A82: Picloram | B82: ppb | C82: 2020 | D82: 500 | E82: 1 | F82: < 1 | G82: 39720
A83: Polychlorinated Biphenyls (PCBs) (as decachlorobiphenyl) | B83: ppb | C83: 2020 | D83: 0.5 | E83: 0.5 | F83: < 0.5 | G83: 39516
A84: Simazine | B84: ppb | C84: 2020 | D84: 4 | E84: 1 | F84: < 1 | G84: 39055
A85: Thiobencarb | B85: ppb | C85: 2020 | D85: 70 | E85: 1 | F85: < 1 | G85: A - 001
A86: Toxaphene | B86: ppb | C86: 2020 | D86: 3 | E86: 1 | F86: < 1 | G86: 39400
A87: 2,3,7,8-TCDD (Dioxin) | B87: ppb | C87: 2020 | D87: 30 | E87: 5 | F87: 0 | G87: 34676
A88: 2,4,5-TP (Silvex) | B88: ppb | C88: 2020 | D88: 50 | E88: 1 | F88: < 1 | G88: 39045
A89: Microbiological Constituents
A90: Total Coliform Bacteria | B90: Highest % of Monthly Positives | C90: 2020 | D90: (1) | E90: NA | F90: 0 | G90: (1) NOTE: None
A91: Fecal Coliform or E.coli | B91: Highest % of Monthly Positives | C91: 2020 | D91: (2) | E91: NA | F91: 0 | G91: (2) NOTE: None
A92: Radiological
A93: Gross Alpha | B93: pCi/L | C93: 2020 | D93: 15 | E93: 3 | F93: 0.705 | G93: 1501
A94: Disinfectant residuals, disinfection by-products, and disinfection by-products precursors
A95: Chlorine | B95: ppm | C95: 2020 | D95: 4.0 | E95: NA | F95: 1.51 | G95: (a) Annual average of product water delivered to Chino and JCSD.
A96: Chloramine | B96: ppm | C96: 2020 | D96: 4.0 | E96: NA | F96: 1.57 | G96: (b) Annual average of product water delivered to Chino Hills.
A97: Total Trihalomethanes (THM'S/TTHM) | B97: ppb | C97: 2020 | D97: 80 | E97: NA | F97: < 0.5 | G97: 82080
A98: - Bromodichloromethane | B98: ppb | C98: 2020 | D98: NA | E98: 1 | F98: < 1 | G98: 32101
A99: - Bromoform | B99: ppb | C99: 2020 | D99: NA | E99: 1 | F99: < 1 | G99: 32104
A100: - Chloroform | B100: ppb | C100: 2020 | D100: NA | E100: 1 | F100: < 1 | G100: 32106
A101: - Dibromochloromethane | B101: ppb | C101: 2020 | D101: NA | E101: 1 | F101: < 1 | G101: 32105
A102: Haloacetic Acids (Five) (HAA5) | B102: ppb | C102: 2020 | D102: 60 | E102: 2 | F102: < 2 | G102: A - 049
A103: Parameter | B103: Units | C103: Year Tested | D103: MCL | E103: DLR | F103: Chino I Desalter | G103: Comments
A104: Parameter | B104: Units | C104: Year Tested | D104: MCL | E104: DLR | F104: Chino I Desalter | G104: Comments
A105: PRIMARY STANDARDS - Mandatory Health-Related Standards
A106: Disinfectant residuals, disinfection by-products, and disinfection by-products precursors (Continued)
A107: - Monochloroacetic Acid | B107: ppb | C107: 2020 | D107: NA | E107: 2 | F107: < 2 | G107: A - 042
A108: - Dichloroacetic Acid | B108: ppb | C108: 2020 | D108: NA | E108: 1 | F108: < 1 | G108: 77288
A109: - Trichloroacetic Acid | B109: ppb | C109: 2020 | D109: NA | E109: 1 | F109: < 1 | G109: 82723
A110: - Monobromoacetic Acid | B110: ppb | C110: 2020 | D110: NA | E110: 1 | F110: < 1 | G110: A - 041
A111: - Dibromoacetic Acid | B111: ppb | C111: 2020 | D111: NA | E111: 1 | F111: < 1 | G111: 82721
A112: Total Organic Carbon (TOC) | B112: ppm | C112: 2020 | D112: NA | E112: 0.3 | F112: < 0.3 | G112: 00680
A113: SECONDARY STANDARDS - Aesthetic Standards
A114: Aluminum | B114: ppb | C114: 2020 | D114: 1000 | E114: 50 | F114: < 50 | G114: 01105
A115: Color | B115: Color Units | C115: 2020 | D115: 15 | E115: NA | F115: < 3 | G115: 00081
A116: Chloride | B116: ppm | C116: 2020 | D116: 500 | E116: NA | F116: 110 | G116: 00940
A117: Copper | B117: ppb | C117: 2020 | D117: 1000 | E117: <50 | F117: < 50 | G117: 01042
A118: Foaming Agents (MBAS) | B118: ppm | C118: 2020 | D118: 0.5 | E118: NA | F118: < 0.08 | G118: 38260
A119: Iron | B119: ppb | C119: 2020 | D119: 300 | E119: 100 | F119: < 100 | G119: 01045
A120: Manganese | B120: ppb | C120: 2020 | D120: 50 | E120: 20 | F120: < 20 | G120: 01055
A121: Methyl-tert-butyl ether (MTBE) | B121: ppb | C121: 2020 | D121: 13 | E121: 3 | F121: < 3 | G121: 46491
A122: Odor - Threshold | B122: TON | C122: 2020 | D122: 3 | E122: 1 | F122: < 1 | G122: 00086
A123: Silver | B123: ppb | C123: 2020 | D123: 100 | E123: 10 | F123: < 10 | G123: 01077
A124: Specific Conductance | B124: uS/cm | C124: 2020 | D124: 1600 | E124: NA | F124: 480 | G124: 00095
A125: Sulfate | B125: ppm | C125: 2020 | D125: 500 | E125: 0.5 | F125: 1 | G125: 00945
A126: Thiobencarb | B126: ppb | C126: 2020 | D126: 70 | E126: 1 | F126: < 1 | G126: A - 001
A127: Total Dissolved Solids (TDS) | B127: ppm | C127: 2020 | D127: 1000 | E127: NA | F127: 340 | G127: 70300
A128: Turbidity | B128: NTU | C128: 2020 | D128: 5 | E128: 0.1 | F128: 0.21 | G128: 82079
A129: Zinc | B129: ppb | C129: 2020 | D129: 5000 | E129: 50 | F129: < 50 | G129: 01092
A130: OTHER MONITORED PARAMETERS
A131: General Mineral and Physical
A132: Bicarbonate | B132: ppm | C132: 2020 | D132: NA | E132: NA | F132: 74 | G132: 00440
A133: Calcium | B133: ppm | C133: 2020 | D133: NA | E133: NA | F133: 47 | G133: 00916
A134: Carbonate | B134: ppm | C134: 2020 | D134: NA | E134: NA | F134: < 5 | G134: 00445
A135: Hydroxide | B135: ppm | C135: 2020 | D135: NA | E135: NA | F135: < 5 | G135: 71830
A136: Magnesium | B136: ppm | C136: 2020 | D136: NA | E136: NA | F136: 11 | G136: 00927
A137: pH | B137: Std. Units | C137: 2020 | D137: NA | E137: NA | F137: 7.7 | G137: 00403
A138: Potassium | B138: ppm | C138: 2020 | D138: NA | E138: NA | F138: 1 | G138: 00937
A139: Sodium | B139: ppm | C139: 2020 | D139: NA | E139: NA | F139: 29 | G139: 00929
A140: Total Alkalinity | B140: ppm | C140: 2020 | D140: NA | E140: NA | F140: 74 | G140: 00410
A141: Total Hardness | B141: ppm | C141: 2020 | D141: NA | E141: NA | F141: 160 | G141: 00900
A142: Additional Analyses
A143: Total Silica | B143: ppm | C143: 2020 | D143: NA | E143: NA | F143: 8 | G143: 00955
A144: Boron | B144: ppb | C144: 2020 | D144: NA | E144: 100 | F144: < 100 | G144: 01020
A145: N-Nitrosodimethylamine (NDMA) | B145: ppb | C145: 2020 | D145: NA | E145: 0.004 | F145: < 0.004 | G145: 34438 - C0G0635
A146: 1,2,3-Trichloropropane (1,2,3-TCP) | B146: ppb | C146: 2020 | D146: 0.005 | E146: 0.005 | F146: < 0.005 | G146: 77443

Sheet Lab Data
C1: Blended Product Water | I1: Clearwell Boosters | U1: Product Average
C2: Before Clearwell | I2: Chino | L2: Chino Hills | O2: JCSD
A3: 2020 | C3: NO3 | D3: NO3-N | E3: TDS | F3: pH | G3: EC | H3: Langelier | I3: NO3 | J3: NO3-N | K3: TDS | L3: NO3 | M3: NO3-N | N3: TDS | O3: NO3 | P3: NO3-N | Q3: TDS | R3: pH | S3: EC | T3: Langelier | U3: Langelier | V3: TCE | W3: 123TCP
C4: mg/L | D4: mg/L | E4: mg/L | G4: umhos/cm | H4: Index | I4: mg/L | J4: mg/L | K4: mg/L | L4: mg/L | M4: mg/L | N4: mg/L | O4: mg/L | P4: mg/L | Q4: mg/L | S4: umhos/cm | T4: Index | U4: Index | V4: ug/L | W4: ug/L
A5: Jan | B5: 7 | C5: =D5*4.4268 -> 8.41092 | D5: 1.9 | E5: 390 | F5: 7.8 | G5: 520 | H5: 0.03 | I5: =J5*4.4268 -> 10.18164 | J5: 2.3 | K5: 370 | L5: =M5*4.4268 -> 10.62432 | M5: 2.4 | N5: 370 | O5: =P5*4.4268 -> 10.18164 | P5: 2.3 | Q5: 380 | R5: 7.9 | S5: 510 | T5: 0.12 | U5: =H5+T5/2 -> 0.09
B6: 14 | C6: =D6*4.4268 -> 7.08288 | D6: 1.6 | E6: 270 | F6: 7.7 | G6: 490 | H6: -0.07 | I6: =J6*4.4268 -> 7.08288 | J6: 1.6 | K6: 310 | L6: =M6*4.4268 -> 6.6402 | M6: 1.5 | N6: 280 | O6: =P6*4.4268 -> 7.08288 | P6: 1.6 | Q6: 280 | R6: 7.7 | S6: 510 | T6: 0.13 | U6: =H6+T6/2 -> -0.005 | V6: <0.5 | W6: <0.005 | X6: C0A1159
B7: 21 | C7: 7.08288 | D7: 1.6 | E7: 430 | F7: 7.6 | G7: 550 | H7: -0.27 | I7: 7.96824 | J7: 1.8 | K7: 340 | L7: 7.96824 | M7: 1.8 | N7: 340 | O7: 7.96824 | P7: 1.8 | Q7: 330 | R7: 7.7 | S7: 520 | T7: 0.13 | U7: -0.205
B8: 28 | C8: 8.8536 | D8: 2 | E8: 310 | F8: 7.6 | G8: 500 | H8: -0.02 | I8: 7.52556 | J8: 1.7 | K8: 310 | L8: 7.52556 | M8: 1.7 | N8: 330 | O8: 7.96824 | P8: 1.8 | Q8: 320 | R8: 7.6 | S8: 520 | T8: -0.05 | U8: -0.045
A9: Feb | B9: 4 | C9: =D9*4.4268 -> 7.52556 | D9: 1.7 | E9: 360 | F9: 7.8 | G9: 520 | H9: 0.09 | I9: =J9*4.4268 -> 7.08288 | J9: 1.6 | K9: 400 | L9: =M9*4.4268 -> 7.08288 | M9: 1.6 | N9: 400 | O9: =P9*4.4268 -> 7.08288 | P9: 1.6 | Q9: 400 | R9: 7.8 | S9: 520 | T9: 0.06 | U9: 0.12
B10: 11 | C10: 9.73896 | D10: 2.2 | E10: 360 | F10: 7.5 | G10: 500 | H10: 0.36 | I10: 13.2804 | J10: 3 | K10: 280 | L10: 13.2804 | M10: 3 | N10: 280 | O10: 13.2804 | P10: 3 | Q10: 280 | R10: 7.4 | S10: 400 | T10: -0.52 | U10: 0.1 | V10: <0.5 | W10: <0.005 | X10: C0B1266
B11: 18 | C11: 16.82184 | D11: 3.8 | E11: 180 | F11: 7.7 | G11: 310 | H11: -0.3 | I11: 10.62432 | J11: 2.4 | K11: 290 | L11: 11.067 | M11: 2.5 | N11: 280 | O11: 11.50968 | P11: 2.6 | Q11: 300 | R11: 7.7 | S11: 470 | T11: 0 | U11: -0.3
B12: 25 | C12: 7.08288 | D12: 1.6 | E12: 290 | F12: 7.5 | G12: 450 | H12: -0.15 | I12: 8.8536 | J12: 2 | K12: 280 | L12: 8.8536 | M12: 2 | N12: 290 | O12: 9.29628 | P12: 2.1 | Q12: 290 | R12: 7.5 | S12: 430 | T12: -0.4 | U12: -0.35
A13: Mar | B13: 3 | C13: =D13*4.4268 -> 8.8536 | D13: 2 | E13: 410 | F13: 7.5 | G13: 530 | H13: -0.48 | I13: =J13*4.4268 -> 8.8536 | J13: 2 | K13: 340 | L13: =M13*4.4268 -> 8.8536 | M13: 2 | N13: 350 | O13: =P13*4.4268 -> 8.8536 | P13: 2 | Q13: 340 | R13: 7.6 | T13: -0.14 | U13: -0.55
B14: 9 | C14: =D14*4.4268 -> 8.41092 | D14: 1.9 | E14: 440 | F14: 7.6 | G14: 580 | H14: -0.23 | I14: =J14*4.4268 -> 10.18164 | J14: 2.3 | K14: 340 | L14: =M14*4.4268 -> 9.29628 | M14: 2.1 | N14: 340 | O14: =P14*4.4268 -> 8.8536 | P14: 2 | Q14: 340 | R14: 7.7 | S14: 540 | T14: 0.17 | U14: -0.145 | V14: <0.5 | W14: <0.005 | X14: C0C1161
B15: 17 | C15: 9.73896 | D15: 2.2 | E15: 350 | F15: 7.7 | G15: 500 | H15: -0.01 | I15: 9.73896 | J15: 2.2 | K15: 330 | L15: 9.73896 | M15: 2.2 | N15: 300 | O15: 9.73896 | P15: 2.2 | Q15: 320 | R15: 7.7 | S15: 480 | T15: -0.03 | U15: -0.025
B16: 24 | C16: 10.18164 | D16: 2.3 | E16: 350 | F16: 7.7 | G16: 520 | H16: -0.02 | I16: 9.29628 | J16: 2.1 | K16: 440 | L16: 9.29628 | M16: 2.1 | N16: 450 | O16: 9.73896 | P16: 2.2 | Q16: 420 | R16: 7.6 | S16: 580 | T16: -0.13 | U16: -0.085
B17: 31 | C17: =D17*4.4268 -> 10.18164 | D17: 2.3 | E17: 420 | F17: 7.7 | G17: 590 | H17: 0.11 | I17: =J17*4.4268 -> 14.60844 | J17: 3.3 | K17: 380 | L17: =M17*4.4268 -> 15.93648 | M17: 3.6 | N17: 400 | O17: =P17*4.4268 -> 14.16576 | P17: 3.2 | Q17: 410 | R17: 7.6 | S17: 590 | T17: 0.11 | U17: 0.165
A18: Apr | B18: 7 | C18: 13.72308 | D18: 3.1 | E18: 370 | F18: 7.7 | G18: 560 | H18: 0.12 | I18: 11.50968 | J18: 2.6 | K18: 400 | L18: 11.067 | M18: 2.5 | N18: 370 | O18: 11.50968 | P18: 2.6 | Q18: 400 | R18: 7.7 | S18: 570 | T18: 0.08 | U18: 0.16
B19: 14 | C19: 19.03524 | D19: 4.3 | E19: 340 | F19: 7.8 | G19: 580 | H19: 0.29 | I19: 12.39504 | J19: 2.8 | K19: 260 | L19: 11.50968 | M19: 2.6 | N19: 260 | O19: 14.60844 | P19: 3.3 | Q19: 320 | R19: 7.8 | S19: 580 | T19: 0.25 | U19: 0.415 | V19: <0.5 | W19: <0.005 | X19: COD1818
B20: 21 | C20: 11.067 | D20: 2.5 | E20: 320 | F20: 7.6 | G20: 460 | H20: -0.18 | I20: 11.067 | J20: 2.5 | K20: 350 | L20: 11.067 | M20: 2.5 | N20: 380 | O20: 11.067 | P20: 2.5 | Q20: 360 | R20: 7.6 | S20: 520 | T20: 0.01 | U20: -0.175
B21: 28 | C21: 14.60844 | D21: 3.3 | E21: 310 | F21: 7.4 | G21: 500 | H21: -0.1 | I21: 15.05112 | J21: 3.4 | K21: 330 | L21: 15.05112 | M21: 3.4 | N21: 370 | O21: 15.05112 | P21: 3.4 | Q21: 350 | R21: 7.4 | S21: 490 | T21: -0.35 | U21: -0.275
A22: May | B22: 5 | C22: =D22*4.4268 -> 15.93648 | D22: 3.6 | E22: 330 | F22: 7.7 | G22: 560 | H22: 0.02 | I22: 15.4938 | J22: 3.5 | K22: 310 | L22: 15.93648 | M22: 3.6 | N22: 320 | O22: 15.4938 | P22: 3.5 | Q22: 310 | R22: 7.6 | S22: 550 | T22: -0.07 | U22: -0.015
B23: 11 | C23: 15.05112 | D23: 3.4 | E23: 360 | F23: 7.8 | G23: 550 | H23: 0.17 | I23: 16.37916 | J23: 3.7 | K23: 380 | L23: 16.82184 | M23: 3.8 | N23: 370 | O23: 16.37916 | P23: 3.7 | Q23: 360 | R23: 7.8 | S23: 550 | T23: 0.14 | U23: 0.24 | V23: <0.5 | W23: <0.005 | X23: C0E1191
B24: 19 | C24: 13.72308 | D24: 3.1 | E24: 380 | F24: 7.7 | G24: 540 | H24: -0.06 | I24: 15.05112 | J24: 3.4 | K24: 420 | L24: 15.05112 | M24: 3.4 | N24: 380 | O24: 15.05112 | P24: 3.4 | Q24: 350 | R24: 7.7 | S24: 550 | T24: 0.04 | U24: -0.04
B25: 26 | C25: 13.2804 | D25: 3 | E25: 440 | F25: 7.8 | G25: 560 | H25: 0.03 | I25: 16.37916 | J25: 3.7 | K25: 440 | L25: 17.26452 | M25: 3.9 | N25: 340 | O25: 16.37916 | P25: 3.7 | Q25: 390 | R25: 7.8 | S25: 550 | T25: 0.19 | U25: 0.125
A26: June | B26: 2 | C26: 18.59256 | D26: 4.2 | E26: 250 | F26: 7.7 | G26: 420 | H26: -0.029 | I26: 19.47792 | J26: 4.4 | K26: 240 | L26: 19.9206 | M26: 4.5 | N26: 260 | O26: 19.47792 | P26: 4.4 | Q26: 250 | R26: 7.5 | S26: 430 | T26: -0.54 | U26: -0.299
B27: 9 | C27: 16.82184 | D27: 3.8 | E27: 380 | F27: 7.8 | G27: 480 | H27: 0.03 | I27: 16.37916 | J27: 3.7 | K27: 350 | L27: 16.37916 | M27: 3.7 | N27: 380 | O27: 16.37916 | P27: 3.7 | Q27: 520 | R27: 7.7 | S27: 510 | T27: 0.08 | U27: 0.07 | V27: <0.5 | W27: <0.005 | X27: C0F1235
B28: 16 | C28: 19.03524 | D28: 4.3 | E28: 310 | F28: 7.8 | G28: 460 | H28: -0.07 | I28: 16.82184 | J28: 3.8 | K28: 400 | L28: 16.37916 | M28: 3.7 | N28: 390 | O28: 16.82184 | P28: 3.8 | Q28: 400 | R28: 7.9 | S28: 460 | T28: 0.23 | U28: 0.045
B29: 23 | C29: 18.59256 | D29: 4.2 | E29: 330 | F29: 7 | G29: 520 | H29: -0.63 | I29: 16.37916 | J29: 3.7 | K29: 360 | L29: 16.82184 | M29: 3.8 | N29: 360 | O29: 16.82184 | P29: 3.8 | Q29: 360 | R29: 7 | S29: 510 | T29: -0.69 | U29: -0.975
B30: 30 | C30: 14.16576 | D30: 3.2 | E30: 320 | F30: 8 | G30: 510 | H30: 0.4 | I30: 13.72308 | J30: 3.1 | K30: 320 | L30: 14.16576 | M30: 3.2 | N30: 340 | O30: 13.72308 | P30: 3.1 | Q30: 310 | R30: 8 | S30: 500 | T30: 0.32 | U30: 0.56
A31: July | B31: 6 | C31: 14.60844 | D31: 3.3 | E31: 300 | F31: 8 | G31: 510 | H31: 0.18 | I31: 18.59256 | J31: 4.2 | K31: 270 | L31: 18.59256 | M31: 4.2 | N31: 280 | O31: 15.4938 | P31: 3.5 | Q31: 360 | R31: 7.9 | S31: 510 | T31: 0.09 | U31: 0.225 | V31: <0.5 | W31: <0.005 | X31: C0G0629
B32: 14 | C32: 20.36328 | D32: 4.6 | E32: 390 | F32: 7.7 | G32: 500 | H32: -0.06 | I32: 18.59256 | J32: 4.2 | K32: 360 | L32: 16.82184 | M32: 3.8 | N32: 330 | O32: 16.37916 | P32: 3.7 | Q32: 390 | R32: 7.8 | S32: 480 | T32: -0.09 | U32: -0.105
B33: 21 | C33: 17.26452 | D33: 3.9 | E33: 450 | F33: 7.8 | G33: 600 | H33: 0.07 | I33: 18.59256 | J33: 4.2 | K33: 390 | L33: 18.59256 | M33: 4.2 | N33: 400 | O33: 18.59256 | P33: 4.2 | Q33: 410 | R33: 7.8 | S33: 550 | T33: 0.17 | U33: 0.155
B34: 28 | C34: 15.05112 | D34: 3.4 | E34: 330 | F34: 8 | G34: 520 | H34: 0.48 | I34: 16.82184 | J34: 3.8 | K34: 390 | L34: 16.37916 | M34: 3.7 | N34: 430 | O34: 16.82184 | P34: 3.8 | Q34: 360 | R34: 8 | S34: 550 | T34: 0.39 | U34: 0.675
A35: Aug | B35: 4 | C35: 15.05112 | D35: 3.4 | E35: 270 | F35: 7.9 | G35: 520 | H35: 0.39 | I35: 15.4938 | J35: 3.5 | K35: 280 | L35: 14.60844 | M35: 3.3 | N35: 340 | O35: 15.4938 | P35: 3.5 | Q35: 280 | R35: 7.8 | S35: 530 | T35: 0.24 | U35: 0.51
B36: 11 | C36: 16.37916 | D36: 3.7 | E36: 360 | F36: 7.9 | G36: 480 | H36: 0.2 | I36: 16.37916 | J36: 3.7 | K36: 390 | L36: 16.37916 | M36: 3.7 | N36: 360 | O36: 16.37916 | P36: 3.7 | Q36: 330 | R36: 7.9 | S36: 490 | T36: 0.22 | U36: 0.31 | V36: <0.5 | W36: <0.005 | X36: C0H1432
B37: 18 | C37: 17.7072 | D37: 4 | E37: 310 | F37: 8 | G37: 540 | H37: 0.41 | I37: 15.93648 | J37: 3.6 | K37: 350 | L37: 15.93648 | M37: 3.6 | N37: 340 | O37: 15.93648 | P37: 3.6 | Q37: 380 | R37: 7.9 | S37: 560 | T37: 0.35 | U37: 0.585
B38: 25 | C38: 16.37916 | D38: 3.7 | E38: 390 | F38: 8 | G38: 560 | H38: 0.51 | I38: 15.05112 | J38: 3.4 | K38: 380 | L38: 15.93648 | M38: 3.6 | N38: 370 | O38: 15.93648 | P38: 3.6 | Q38: 390 | R38: 7.6 | S38: 450 | T38: 0.26 | U38: 0.64
A39: Sept | B39: 1 | C39: 12.39504 | D39: 2.8 | E39: 360 | F39: 7.8 | G39: 570 | H39: 0.14 | I39: 16.37916 | J39: 3.7 | K39: 330 | L39: 16.82184 | M39: 3.8 | N39: 330 | O39: 16.37916 | P39: 3.7 | Q39: 360 | R39: 7.8 | S39: 540 | T39: 0.19 | U39: 0.235
B40: 8 | C40: 15.4938 | D40: 3.5 | E40: 490 | F40: 7.6 | G40: 580 | H40: -0.23 | I40: 15.4938 | J40: 3.5 | K40: 340 | L40: 15.4938 | M40: 3.5 | N40: 320 | O40: 15.93648 | P40: 3.6 | Q40: 340 | R40: 7.7 | S40: 530 | T40: 0.08 | U40: -0.19 | V40: <0.5 | W40: <0.005 | X40: C0I0955
B41: 15 | C41: 14.60844 | D41: 3.3 | E41: 300 | F41: 7.7 | G41: 480 | H41: -0.01 | I41: 12.39504 | J41: 2.8 | K41: 300 | L41: 12.39504 | M41: 2.8 | N41: 310 | O41: 12.39504 | P41: 2.8 | Q41: 300 | R41: 7.7 | S41: 490 | T41: -0.02 | U41: -0.02
B42: 22 | C42: 14.16576 | D42: 3.2 | E42: 330 | F42: 7.6 | G42: 500 | H42: -0.19 | I42: 13.72308 | J42: 3.1 | K42: 290 | L42: 13.2804 | M42: 3 | N42: 350 | O42: 13.72308 | P42: 3.1 | Q42: 310 | R42: 7.7 | S42: 490 | T42: -0.05 | U42: -0.215
B43: 29 | C43: 16.37916 | D43: 3.7 | E43: 320 | F43: 7.7 | G43: 510 | H43: -0.01 | I43: 15.93648 | J43: 3.6 | K43: 310 | L43: 15.93648 | M43: 3.6 | N43: 310 | O43: 15.05112 | P43: 3.4 | Q43: 320 | R43: 7.7 | S43: 510 | T43: 0.04 | U43: 0.01
A44: Oct | B44: 6 | C44: 17.7072 | D44: 4 | E44: 260 | F44: 7.7 | G44: 530 | H44: -0.06 | I44: 16.37916 | J44: 3.7 | K44: 320 | L44: 15.05112 | M44: 3.4 | N44: 300 | O44: 15.4938 | P44: 3.5 | Q44: 330 | R44: 7.6 | S44: 550 | T44: -0.04 | U44: -0.08
B45: 13 | C45: 8.8536 | D45: 2 | E45: 510 | F45: 7.6 | G45: 590 | H45: -0.14 | I45: 10.62432 | J45: 2.4 | K45: 550 | L45: 10.62432 | M45: 2.4 | N45: 500 | O45: 10.62432 | P45: 2.4 | Q45: 520 | R45: 7.8 | S45: 600 | T45: 0.16 | U45: -0.06 | V45: <0.5 | W45: <0.005 | X45: C0J1638
B46: 20 | C46: 8.8536 | D46: 2 | E46: 330 | F46: 7.8 | G46: 540 | H46: 0.23 | I46: 8.8536 | J46: 2 | K46: 290 | L46: 9.29628 | M46: 2.1 | N46: 330 | O46: 9.29628 | P46: 2.1 | Q46: 300 | R46: 7.8 | S46: 550 | T46: 0.16 | U46: 0.31
B47: 27 | C47: 13.2804 | D47: 3 | E47: 320 | F47: 7.9 | G47: 540 | H47: 0.3 | I47: 12.83772 | J47: 2.9 | K47: 340 | L47: 12.83772 | M47: 2.9 | N47: 370 | O47: 12.83772 | P47: 2.9 | Q47: 320 | R47: 7.8 | S47: 550 | T47: 0.2 | U47: 0.4
A48: Nov | B48: 3 | C48: 11.95236 | D48: 2.7 | E48: 350 | F48: 7.6 | G48: 570 | H48: 0.04 | I48: 10.62432 | J48: 2.4 | K48: 360 | L48: 10.62432 | M48: 2.4 | N48: 360 | O48: 11.067 | P48: 2.5 | Q48: 350 | R48: 7.8 | S48: 590 | T48: 0.25 | U48: 0.165
B49: 10 | C49: 9.73896 | D49: 2.2 | E49: 270 | F49: 7.9 | G49: 560 | H49: 0.36 | I49: 9.29628 | J49: 2.1 | K49: 300 | L49: 9.29628 | M49: 2.1 | N49: 360 | O49: 9.29628 | P49: 2.1 | Q49: 300 | R49: 7.8 | S49: 540 | T49: 0.12 | U49: 0.42 | V49: <0.5 | W49: <0.005 | X49: C0K1357
B50: 17 | C50: 14.16576 | D50: 3.2 | E50: 390 | F50: 7.7 | G50: 670 | H50: 0 | I50: 11.95236 | J50: 2.7 | K50: 270 | L50: 11.95236 | M50: 2.7 | N50: 310 | O50: 12.39504 | P50: 2.8 | Q50: 290 | R50: 7.7 | S50: 530 | T50: 0.08 | U50: 0.04
B51: 24 | C51: 13.72308 | D51: 3.1 | E51: 280 | F51: 7.5 | G51: 520 | H51: -0.26 | I51: 12.39504 | J51: 2.8 | K51: 280 | L51: 12.39504 | M51: 2.8 | N51: 290 | O51: 12.39504 | P51: 2.8 | Q51: 280 | R51: 7.6 | S51: 540 | T51: -0.15 | U51: -0.335
A52: Dec | B52: 1 | C52: 15.4938 | D52: 3.5 | E52: 320 | F52: 7.3 | G52: 540 | H52: -0.55 | I52: 12.83772 | J52: 2.9 | K52: 340 | L52: 11.50968 | M52: 2.6 | N52: 320 | O52: 13.2804 | P52: 3 | Q52: 330 | R52: 7.7 | S52: 580 | T52: -0.02 | U52: -0.56
B53: 8 | C53: 7.08288 | D53: 1.6 | E53: 440 | F53: 7.7 | G53: 610 | H53: 0.13 | I53: 7.08288 | J53: 1.6 | K53: 440 | L53: 7.08288 | M53: 1.6 | N53: 420 | O53: 7.08288 | P53: 1.6 | Q53: 440 | R53: 7.5 | S53: 600 | T53: -0.09 | U53: 0.085 | V53: <0.5 | W53: <0.005 | X53: C0L1048
B54: 15 | C54: 15.05112 | D54: 3.4 | E54: 300 | F54: 7.8 | G54: 570 | H54: 0.18 | I54: 13.2804 | J54: 3 | K54: 300 | L54: 12.39504 | M54: 2.8 | N54: 300 | O54: 13.72308 | P54: 3.1 | Q54: 290 | R54: 7.5 | S54: 480 | T54: -0.31 | U54: 0.025
B55: 22 | C55: 10.18164 | D55: 2.3 | E55: 380 | F55: 7.7 | G55: 560 | H55: 0 | I55: 10.62432 | J55: 2.4 | K55: 370 | L55: 10.62432 | M55: 2.4 | N55: 400 | O55: 10.62432 | P55: 2.4 | Q55: 360 | R55: 7.7 | S55: 570 | T55: 0.05 | U55: 0.025
B56: 29 | C56: 15.05112 | D56: 3.4 | E56: 330 | F56: 8 | G56: 540 | H56: 0.44 | I56: 14.60844 | J56: 3.3 | K56: 340 | L56: 14.16576 | M56: 3.2 | N56: 340 | O56: 14.60844 | P56: 3.3 | Q56: 350 | R56: 7.8 | S56: 550 | T56: 0.17 | U56: 0.525
A60: Min. | C60: =MIN(C5:C56) -> 7.08288 | D60: 1.6 | E60: 180 | F60: 7 | G60: 310 | H60: -0.63 | I60: 7.08288 | J60: 1.6 | K60: 240 | L60: 6.6402 | M60: 1.5 | N60: 260 | O60: 7.08288 | P60: 1.6 | Q60: 250 | R60: 7 | S60: 400 | T60: -0.69 | U60: -1.5 | V60: <0.50 | W60: <0.005
A61: Avg. | C61: =AVERAGE(C5:C56) -> 13.2804 | D61: 3 | E61: 347.6923077 | F61: 7.713461538 | G61: 528.2692308 | H61: 0.03040384615 | I61: 13.11865154 | J61: 2.963461538 | K61: 343.2692308 | L61: 13.05054692 | M61: 2.948076923 | N61: 346.1538462 | O61: 13.11013846 | P61: 2.961538462 | Q61: 347.6923077 | R61: 7.7 | S61: 524.5098039 | T61: 0.03057692308 | U61: -0.5 | V61: <0.50 | W61: <0.005
A62: Max. | C62: =MAX(C5:C56) -> 20.36328 | D62: 4.6 | E62: 510 | F62: 8 | G62: 670 | H62: 0.51 | I62: 19.47792 | J62: 4.4 | K62: 550 | L62: 19.9206 | M62: 4.5 | N62: 500 | O62: 19.47792 | P62: 4.4 | Q62: 520 | R62: 8 | S62: 600 | T62: 0.39 | U62: 0.2 | V62: <0.50 | W62: <0.005
